[Event "Betsys MČR v online bleskovém šachu 2021"]
[Site "Chess.com"]
[Date "2021.04.17"]
[Round "13"]
[White "MichalTrhal"]
[Black "Innerz98"]
[Result "0-1"]
[WhiteElo "1944"]
[BlackElo "2118"]
[TimeControl "180+1"]
[EndTime "11:12:14 PDT"]
[Termination "Uživatel Innerz98 zvítězil na čas"]

1. d4 {[%clk 0:02:58.2]} 1... d5 {[%clk 0:03:00.2]} 2. Bg5 {[%clk 0:02:57.5]}
2... Bf5 {[%clk 0:02:59.9]} 3. e3 {[%clk 0:02:56.8]} 3... c6 {[%clk 0:02:59.9]}
4. Bd3 {[%clk 0:02:55.6]} 4... Bg6 {[%clk 0:03:00]} 5. Nf3 {[%clk 0:02:54]} 5...
Nf6 {[%clk 0:02:59.8]} 6. O-O {[%clk 0:02:49.1]} 6... Ne4 {[%clk 0:02:57.5]} 7.
Bh4 {[%clk 0:02:48.2]} 7... Nd7 {[%clk 0:02:53]} 8. Nc3 {[%clk 0:02:44.8]} 8...
Ndf6 {[%clk 0:02:49.6]} 9. Ne5 {[%clk 0:02:42.8]} 9... Nxc3 {[%clk 0:02:34.4]}
10. bxc3 {[%clk 0:02:34.6]} 10... Qa5 {[%clk 0:02:32.8]} 11. c4 {[%clk
0:02:30.9]} 11... e6 {[%clk 0:02:12.3]} 12. Bxf6 {[%clk 0:02:24.4]} 12... gxf6
{[%clk 0:02:13.2]} 13. Nxg6 {[%clk 0:02:24.6]} 13... hxg6 {[%clk 0:02:12.8]} 14.
cxd5 {[%clk 0:02:25]} 14... Qxd5 {[%clk 0:02:09.5]} 15. Rb1 {[%clk 0:02:04.9]}
15... Bd6 {[%clk 0:02:03.7]} 16. g3 {[%clk 0:02:01.5]} 16... b5 {[%clk 0:01:44]}
17. e4 {[%clk 0:01:44.3]} 17... Qxd4 {[%clk 0:00:56.5]} 18. Bxb5 {[%clk
0:01:32.3]} 18... Qc5 {[%clk 0:00:56.6]} 19. Ba4 {[%clk 0:01:04.9]} 19... Kf8
{[%clk 0:00:56.4]} 20. Qe2 {[%clk 0:01:01]} 20... Kg7 {[%clk 0:00:52.7]} 21.
Rfd1 {[%clk 0:00:59.6]} 21... Rh5 {[%clk 0:00:46.3]} 22. Kg2 {[%clk 0:00:56.7]}
22... Rah8 {[%clk 0:00:44.1]} 23. Rh1 {[%clk 0:00:56]} 23... f5 {[%clk
0:00:31.2]} 24. exf5 {[%clk 0:00:51]} 24... Qd5+ {[%clk 0:00:27]} 25. f3 {[%clk
0:00:50.9]} 25... Qxf5 {[%clk 0:00:23.1]} 26. Bxc6 {[%clk 0:00:47.1]} 26... Qg5
{[%clk 0:00:20.8]} 27. Rb5 {[%clk 0:00:40.6]} 27... Qf6 {[%clk 0:00:17.8]} 28.
Rxh5 {[%clk 0:00:39]} 28... Rxh5 {[%clk 0:00:18.7]} 29. Be4 {[%clk 0:00:38.4]}
29... Qc3 {[%clk 0:00:16.4]} 30. Qd3 {[%clk 0:00:35.9]} 30... Qc5 {[%clk
0:00:14]} 31. Rd1 {[%clk 0:00:33.3]} 31... Bc7 {[%clk 0:00:12.9]} 32. Qd4+
{[%clk 0:00:32.8]} 32... Qxd4 {[%clk 0:00:13.1]} 33. Rxd4 {[%clk 0:00:33.7]}
33... Ra5 {[%clk 0:00:13.3]} 34. a4 {[%clk 0:00:32.9]} 34... Bb6 {[%clk
0:00:13.2]} 35. Rc4 {[%clk 0:00:32.4]} 35... Kf6 {[%clk 0:00:11.2]} 36. Bc6
{[%clk 0:00:32.4]} 36... Re5 {[%clk 0:00:09.8]} 37. Re4 {[%clk 0:00:30.9]} 37...
Rc5 {[%clk 0:00:09.5]} 38. Bb5 {[%clk 0:00:27.2]} 38... Rxc2+ {[%clk 0:00:09.6]}
39. Re2 {[%clk 0:00:28.1]} 39... Rc3 {[%clk 0:00:09.7]} 40. Rd2 {[%clk
0:00:23.4]} 40... Rc1 {[%clk 0:00:09.7]} 41. Kh3 {[%clk 0:00:21]} 41... Rc5
{[%clk 0:00:09.1]} 42. Kg2 {[%clk 0:00:20.3]} 42... Ba5 {[%clk 0:00:08]} 43. Re2
{[%clk 0:00:19.7]} 43... Bb4 {[%clk 0:00:07.3]} 44. h4 {[%clk 0:00:19.5]} 44...
a5 {[%clk 0:00:07.7]} 45. g4 {[%clk 0:00:18.4]} 45... Rc1 {[%clk 0:00:08.2]} 46.
Kg3 {[%clk 0:00:17.7]} 46... Bd6+ {[%clk 0:00:07.5]} 47. Kf2 {[%clk 0:00:15.4]}
47... Bc5+ {[%clk 0:00:07.9]} 48. Kg2 {[%clk 0:00:15.1]} 48... Rg1+ {[%clk
0:00:07.2]} 49. Kh2 {[%clk 0:00:15]} 49... Rc1 {[%clk 0:00:06.7]} 50. Rg2 {[%clk
0:00:11.7]} 50... Bd6+ {[%clk 0:00:06.4]} 51. Rg3 {[%clk 0:00:09.6]} 51... Bxg3+
{[%clk 0:00:05.4]} 52. Kxg3 {[%clk 0:00:10.5]} 52... Rc3 {[%clk 0:00:05.9]} 53.
Kf2 {[%clk 0:00:10.1]} 53... e5 {[%clk 0:00:06.4]} 54. Kg2 {[%clk 0:00:09]}
54... Ra3 {[%clk 0:00:07]} 55. Kf2 {[%clk 0:00:08.9]} 55... Ke6 {[%clk
0:00:07.5]} 56. Kg2 {[%clk 0:00:06.8]} 56... Ke7 {[%clk 0:00:07.8]} 57. Kf2
{[%clk 0:00:05.8]} 57... f5 {[%clk 0:00:08.3]} 58. Kg2 {[%clk 0:00:02.7]} 58...
e4 {[%clk 0:00:08.6]} 0-1

[Event "Betsys MČR v online bleskovém šachu 2021"]
[Site "Chess.com"]
[Date "2021.04.17"]
[Round "13"]
[White "Mimochodem"]
[Black "Bagr92"]
[Result "1-0"]
[WhiteElo "1796"]
[BlackElo "1595"]
[TimeControl "180+1"]
[EndTime "11:12:16 PDT"]
[Termination "Uživatel Mimochodem zvítězil po vzdání soupeře"]

1. e4 {[%clk 0:03:00.9]} 1... c5 {[%clk 0:02:58.4]} 2. Nf3 {[%clk 0:03:01.2]}
2... e6 {[%clk 0:02:58.3]} 3. Nc3 {[%clk 0:03:01.4]} 3... d5 {[%clk 0:02:57.9]}
4. exd5 {[%clk 0:03:01.1]} 4... exd5 {[%clk 0:02:58.8]} 5. d4 {[%clk 0:03:01.2]}
5... Nf6 {[%clk 0:02:57.9]} 6. Bg5 {[%clk 0:02:57.6]} 6... Nbd7 {[%clk
0:02:56.1]} 7. Nxd5 {[%clk 0:02:54.1]} 7... h6 {[%clk 0:02:52.4]} 8. Nxf6+
{[%clk 0:02:53.2]} 8... Nxf6 {[%clk 0:02:50.8]} 9. Be3 {[%clk 0:02:47.5]} 9...
Be7 {[%clk 0:02:49.1]} 10. Bb5+ {[%clk 0:02:44.1]} 10... Bd7 {[%clk 0:02:45.7]}
11. Bxd7+ {[%clk 0:02:44.3]} 11... Qxd7 {[%clk 0:02:45.5]} 12. O-O {[%clk
0:02:39.8]} 12... O-O {[%clk 0:02:43.9]} 13. dxc5 {[%clk 0:02:39.1]} 13... Qb5
{[%clk 0:02:43.1]} 14. b3 {[%clk 0:02:29]} 14... Rfd8 {[%clk 0:02:39.1]} 15. Qe1
{[%clk 0:02:23.9]} 15... Ng4 {[%clk 0:02:34.4]} 16. Bxh6 {[%clk 0:02:15.1]}
16... Bxc5 {[%clk 0:02:31]} 17. Bg5 {[%clk 0:01:57.1]} 17... Re8 {[%clk
0:02:24.7]} 18. Qd2 {[%clk 0:01:52.8]} 18... Qc6 {[%clk 0:01:52.9]} 19. h3
{[%clk 0:01:45.7]} 19... Ne5 {[%clk 0:01:42.5]} 20. Nxe5 {[%clk 0:01:38.6]}
20... Rxe5 {[%clk 0:01:41]} 21. Bf4 {[%clk 0:01:37.3]} 21... Rf5 {[%clk
0:01:30.3]} 22. Bg3 {[%clk 0:01:34.9]} 22... Qg6 {[%clk 0:01:25.3]} 23. Qd3
{[%clk 0:01:30.1]} 23... Bb6 {[%clk 0:01:18.9]} 24. a4 {[%clk 0:01:27.3]} 24...
Rd8 {[%clk 0:01:18.2]} 25. Qe4 {[%clk 0:01:12]} 25... Qf6 {[%clk 0:00:42.8]} 26.
Kh2 {[%clk 0:01:01.1]} 26... Rd4 {[%clk 0:00:35.1]} 27. Qxb7 {[%clk 0:00:55.8]}
27... Rd2 {[%clk 0:00:21.6]} 28. f4 {[%clk 0:00:48.1]} 28... Qg6 {[%clk
0:00:18.7]} 29. Qf3 {[%clk 0:00:43.7]} 29... Rc5 {[%clk 0:00:14.3]} 30. Rf2
{[%clk 0:00:33.5]} 30... Rcxc2 {[%clk 0:00:12.9]} 31. Rxd2 {[%clk 0:00:32.1]}
31... Rxd2 {[%clk 0:00:12.1]} 32. Rc1 {[%clk 0:00:24.2]} 32... Rc2 {[%clk
0:00:09.2]} 33. Rd1 {[%clk 0:00:21.6]} 33... Kh7 {[%clk 0:00:06.8]} 34. Rd5
{[%clk 0:00:21.3]} 34... Qf6 {[%clk 0:00:03.8]} 35. Rh5+ {[%clk 0:00:21]} 35...
Kg6 {[%clk 0:00:03.3]} 36. Qe4+ {[%clk 0:00:19.8]} 36... Kxh5 {[%clk 0:00:02.9]}
37. Qxc2 {[%clk 0:00:20.3]} 37... Kh6 {[%clk 0:00:01.4]} 38. Qe2 {[%clk
0:00:20.5]} 38... Kh7 {[%clk 0:00:01.7]} 39. Qe4+ {[%clk 0:00:20.2]} 39... Kg8
{[%clk 0:00:02.6]} 40. h4 {[%clk 0:00:20.1]} 40... g6 {[%clk 0:00:02.7]} 41. Qe5
{[%clk 0:00:20.4]} 41... Qxe5 {[%clk 0:00:02.8]} 42. fxe5 {[%clk 0:00:20.7]}
42... Kf8 {[%clk 0:00:02.7]} 43. Kh3 {[%clk 0:00:21.3]} 43... Ke7 {[%clk
0:00:03.3]} 44. Kg4 {[%clk 0:00:21.8]} 44... Ke6 {[%clk 0:00:04.2]} 45. h5
{[%clk 0:00:21.2]} 45... Be3 {[%clk 0:00:04.6]} 46. hxg6 {[%clk 0:00:20.2]}
46... fxg6 {[%clk 0:00:05]} 47. Kf3 {[%clk 0:00:20.7]} 47... Bd2 {[%clk
0:00:04.6]} 48. Ke4 {[%clk 0:00:21]} 48... Bc3 {[%clk 0:00:05.5]} 49. Bf2 {[%clk
0:00:19.9]} 49... a5 {[%clk 0:00:05.2]} 50. Bd4 {[%clk 0:00:19.3]} 50... Bb4
{[%clk 0:00:04.4]} 51. Kd3 {[%clk 0:00:18.2]} 51... Kd5 {[%clk 0:00:04.4]} 52.
g4 {[%clk 0:00:17.2]} 52... Ke6 {[%clk 0:00:03.4]} 53. Kc4 {[%clk 0:00:16.1]}
53... g5 {[%clk 0:00:03.6]} 54. Bc5 {[%clk 0:00:15.2]} 54... Bxc5 {[%clk
0:00:01.8]} 55. Kxc5 {[%clk 0:00:14.9]} 55... Kxe5 {[%clk 0:00:02.7]} 56. Kb5
{[%clk 0:00:15.2]} 56... Kf4 {[%clk 0:00:03.6]} 57. Kxa5 {[%clk 0:00:15.7]}
57... Kxg4 {[%clk 0:00:04.5]} 58. b4 {[%clk 0:00:16.2]} 58... Kh3 {[%clk
0:00:04.8]} 59. b5 {[%clk 0:00:16.9]} 59... g4 {[%clk 0:00:05.1]} 60. b6 {[%clk
0:00:17.6]} 60... g3 {[%clk 0:00:06]} 61. b7 {[%clk 0:00:18.1]} 61... g2 {[%clk
0:00:06.9]} 62. b8=Q {[%clk 0:00:18]} 62... g1=Q {[%clk 0:00:07.8]} 63. Qh8+
{[%clk 0:00:17.5]} 63... Kg2 {[%clk 0:00:07.3]} 64. Qg7+ {[%clk 0:00:17.9]}
64... Kh1 {[%clk 0:00:07.4]} 65. Qxg1+ {[%clk 0:00:17.8]} 65... Kxg1 {[%clk
0:00:08.3]} 66. Kb6 {[%clk 0:00:17.9]} 1-0

[Event "Betsys MČR v online bleskovém šachu 2021"]
[Site "Chess.com"]
[Date "2021.04.17"]
[Round "13"]
[White "BRNOTEACHER"]
[Black "Herracek"]
[Result "0-1"]
[WhiteElo "2384"]
[BlackElo "2614"]
[TimeControl "180+1"]
[EndTime "11:12:19 PDT"]
[Termination "Uživatel Herracek zvítězil na čas"]

1. d4 {[%clk 0:03:00.9]} 1... Nf6 {[%clk 0:03:00.3]} 2. c4 {[%clk 0:03:01]} 2...
e6 {[%clk 0:03:00.6]} 3. Nc3 {[%clk 0:03:00.3]} 3... Bb4 {[%clk 0:03:00.7]} 4.
e3 {[%clk 0:03:00.3]} 4... d5 {[%clk 0:02:59.9]} 5. a3 {[%clk 0:02:59.3]} 5...
Bxc3+ {[%clk 0:02:59.4]} 6. bxc3 {[%clk 0:03:00.2]} 6... c5 {[%clk 0:02:58.8]}
7. cxd5 {[%clk 0:03:00.4]} 7... exd5 {[%clk 0:02:59.2]} 8. Bd3 {[%clk
0:03:00.5]} 8... O-O {[%clk 0:02:55]} 9. Ne2 {[%clk 0:03:00.5]} 9... c4 {[%clk
0:02:52.7]} 10. Bc2 {[%clk 0:02:58.7]} 10... b5 {[%clk 0:02:52]} 11. f3 {[%clk
0:02:57.3]} 11... Re8 {[%clk 0:02:42.6]} 12. O-O {[%clk 0:02:57.3]} 12... a5
{[%clk 0:02:42.5]} 13. Ng3 {[%clk 0:02:55.9]} 13... Bb7 {[%clk 0:02:36.1]} 14.
Rb1 {[%clk 0:02:54.8]} 14... Bc6 {[%clk 0:02:34.1]} 15. e4 {[%clk 0:02:53.1]}
15... dxe4 {[%clk 0:02:33.3]} 16. fxe4 {[%clk 0:02:54]} 16... Qb6 {[%clk
0:02:04.8]} 17. Qf3 {[%clk 0:02:43.7]} 17... Nbd7 {[%clk 0:01:58.2]} 18. Qf2
{[%clk 0:02:28.4]} 18... Rf8 {[%clk 0:00:39.5]} 19. d5 {[%clk 0:02:26.2]} 19...
Qxf2+ {[%clk 0:00:39.6]} 20. Rxf2 {[%clk 0:02:25.6]} 20... Bb7 {[%clk
0:00:40.1]} 21. Rxb5 {[%clk 0:02:25.1]} 21... Rfb8 {[%clk 0:00:37.8]} 22. Nf5
{[%clk 0:01:57.8]} 22... Ng4 {[%clk 0:00:31.5]} 23. Rf1 {[%clk 0:01:48.2]} 23...
Ba6 {[%clk 0:00:31.2]} 24. Rxa5 {[%clk 0:01:46.7]} 24... Nge5 {[%clk 0:00:26.4]}
25. Nd4 {[%clk 0:01:37.3]} 25... Nd3 {[%clk 0:00:24.2]} 26. Bf4 {[%clk
0:01:26.4]} 26... Rb2 {[%clk 0:00:19.4]} 27. Bd6 {[%clk 0:01:22.8]} 27... f6
{[%clk 0:00:10.9]} 28. Bb4 {[%clk 0:01:05.9]} 28... N7e5 {[%clk 0:00:10.6]} 29.
h3 {[%clk 0:00:49.5]} 29... Bb7 {[%clk 0:00:10.1]} 30. Rxa8+ {[%clk 0:00:44.5]}
30... Bxa8 {[%clk 0:00:11]} 31. Rd1 {[%clk 0:00:36.6]} 31... Kf7 {[%clk
0:00:10.5]} 32. Bxd3 {[%clk 0:00:22.2]} 32... cxd3 {[%clk 0:00:10.3]} 33. Nf3
{[%clk 0:00:21.6]} 33... Nc4 {[%clk 0:00:09.3]} 34. Rxd3 {[%clk 0:00:20.5]}
34... Ra2 {[%clk 0:00:07]} 35. Rd4 {[%clk 0:00:17.9]} 35... Nxa3 {[%clk
0:00:06]} 36. Bxa3 {[%clk 0:00:16.6]} 36... Rxa3 {[%clk 0:00:06.9]} 37. c4
{[%clk 0:00:16.6]} 37... Rc3 {[%clk 0:00:05.2]} 38. Kf2 {[%clk 0:00:15]} 38...
Ke8 {[%clk 0:00:05.4]} 39. Ke2 {[%clk 0:00:14.7]} 39... Kd7 {[%clk 0:00:05.8]}
40. Kd2 {[%clk 0:00:14.6]} 40... Ra3 {[%clk 0:00:06.4]} 41. c5 {[%clk
0:00:14.6]} 41... Ra2+ {[%clk 0:00:06.8]} 42. Ke3 {[%clk 0:00:13.1]} 42... Rxg2
{[%clk 0:00:07.2]} 43. c6+ {[%clk 0:00:12]} 43... Kd6 {[%clk 0:00:07.4]} 44. Ra4
{[%clk 0:00:11.2]} 44... Bxc6 {[%clk 0:00:04.9]} 45. Ra6 {[%clk 0:00:11.3]}
45... Rc2 {[%clk 0:00:05]} 46. Nd4 {[%clk 0:00:09.2]} 46... Rc3+ {[%clk
0:00:05]} 47. Kd2 {[%clk 0:00:09.3]} 47... Rxh3 {[%clk 0:00:05.1]} 48. Rxc6+
{[%clk 0:00:08.2]} 48... Ke5 {[%clk 0:00:05.5]} 49. Ne2 {[%clk 0:00:07.2]} 49...
Kxe4 {[%clk 0:00:05.1]} 50. Nc3+ {[%clk 0:00:06.9]} 50... Ke5 {[%clk 0:00:04.9]}
51. Re6+ {[%clk 0:00:06.9]} 51... Kd4 {[%clk 0:00:05.3]} 52. Rc6 {[%clk
0:00:02.9]} 52... Rd3+ {[%clk 0:00:04.6]} 53. Kc2 {[%clk 0:00:02.9]} 53... Ke3
{[%clk 0:00:03.8]} 54. d6 {[%clk 0:00:02.6]} 54... Rd2+ {[%clk 0:00:03.7]} 55.
Kb3 {[%clk 0:00:02.4]} 55... f5 {[%clk 0:00:03.8]} 56. Kc4 {[%clk 0:00:02.3]}
56... f4 {[%clk 0:00:03.9]} 57. Nd5+ {[%clk 0:00:02.4]} 57... Ke4 {[%clk
0:00:02.1]} 58. d7 {[%clk 0:00:02.4]} 58... Rd4+ {[%clk 0:00:02.1]} 0-1

[Event "Betsys MČR v online bleskovém šachu 2021"]
[Site "Chess.com"]
[Date "2021.04.17"]
[Round "13"]
[White "jhdghaka"]
[Black "AJedlicka"]
[Result "0-1"]
[WhiteElo "1905"]
[BlackElo "2204"]
[TimeControl "180+1"]
[EndTime "11:12:19 PDT"]
[Termination "Uživatel AJedlicka zvítězil po vzdání soupeře"]

1. e4 {[%clk 0:03:00.9]} 1... c5 {[%clk 0:02:59.2]} 2. Nf3 {[%clk 0:03:01.1]}
2... d6 {[%clk 0:02:58.8]} 3. Bb5+ {[%clk 0:03:01.3]} 3... Bd7 {[%clk
0:02:58.4]} 4. Bxd7+ {[%clk 0:03:01.9]} 4... Qxd7 {[%clk 0:02:58.6]} 5. O-O
{[%clk 0:03:02.8]} 5... Nc6 {[%clk 0:02:57.3]} 6. Re1 {[%clk 0:03:03.7]} 6...
Nf6 {[%clk 0:02:55.6]} 7. c3 {[%clk 0:03:04.6]} 7... e6 {[%clk 0:02:55.4]} 8. d4
{[%clk 0:03:04.8]} 8... cxd4 {[%clk 0:02:55.2]} 9. cxd4 {[%clk 0:03:05.7]} 9...
d5 {[%clk 0:02:55.2]} 10. e5 {[%clk 0:03:06.2]} 10... Ne4 {[%clk 0:02:55.1]} 11.
Nc3 {[%clk 0:03:07]} 11... Nxc3 {[%clk 0:02:54.1]} 12. bxc3 {[%clk 0:03:07.9]}
12... Be7 {[%clk 0:02:53.9]} 13. h4 {[%clk 0:03:03.2]} 13... h6 {[%clk
0:02:52.7]} 14. Nh2 {[%clk 0:02:46.1]} 14... Rc8 {[%clk 0:02:51.1]} 15. Qg4
{[%clk 0:02:46.2]} 15... g6 {[%clk 0:02:46.9]} 16. h5 {[%clk 0:02:46]} 16... g5
{[%clk 0:02:46.1]} 17. f4 {[%clk 0:02:44.1]} 17... Rg8 {[%clk 0:02:41.5]} 18.
fxg5 {[%clk 0:02:43.3]} 18... Bxg5 {[%clk 0:02:40.1]} 19. Bxg5 {[%clk
0:02:42.3]} 19... Rxg5 {[%clk 0:02:39.2]} 20. Qh3 {[%clk 0:02:35.5]} 20... Qe7
{[%clk 0:02:29.3]} 21. Nf3 {[%clk 0:02:35.6]} 21... Rg7 {[%clk 0:02:27.2]} 22.
Nd2 {[%clk 0:02:30.7]} 22... Kd7 {[%clk 0:02:26.1]} 23. Nb3 {[%clk 0:02:29.3]}
23... b6 {[%clk 0:02:25.8]} 24. a4 {[%clk 0:02:28.7]} 24... Rcg8 {[%clk
0:02:25.2]} 25. Re2 {[%clk 0:02:25.6]} 25... Rg3 {[%clk 0:02:22.4]} 26. Qh2
{[%clk 0:02:16.8]} 26... R8g4 {[%clk 0:02:19.6]} 27. a5 {[%clk 0:02:14.8]} 27...
Qg5 {[%clk 0:02:15.9]} 28. axb6 {[%clk 0:02:13.8]} 28... axb6 {[%clk 0:02:15.4]}
29. Kf1 {[%clk 0:01:56]} 29... Rh4 {[%clk 0:01:48.8]} 30. Qg1 {[%clk 0:01:55.5]}
30... Qxh5 {[%clk 0:01:41]} 31. Kf2 {[%clk 0:01:48.7]} 31... Rxc3 {[%clk
0:01:27.5]} 32. Qd1 {[%clk 0:01:47.2]} 32... Qf5+ {[%clk 0:01:22.3]} 33. Kg1
{[%clk 0:01:46.1]} 33... Qh5 {[%clk 0:01:11.4]} 34. Kf2 {[%clk 0:01:45.7]} 34...
Rf4+ {[%clk 0:01:07.6]} 35. Kg1 {[%clk 0:01:45.5]} 35... Re4 {[%clk 0:00:57.4]}
36. Qe1 {[%clk 0:00:37.6]} 36... Qxe2 {[%clk 0:00:52.9]} 37. Qxc3 {[%clk
0:00:37.5]} 37... Qe3+ {[%clk 0:00:52.8]} 38. Qxe3 {[%clk 0:00:37.3]} 38... Rxe3
{[%clk 0:00:52.6]} 39. Rb1 {[%clk 0:00:37.6]} 39... Rd3 {[%clk 0:00:49.6]} 40.
Kf2 {[%clk 0:00:36.1]} 40... Nxd4 {[%clk 0:00:48.7]} 41. Nxd4 {[%clk 0:00:36.6]}
41... Rxd4 {[%clk 0:00:48.7]} 42. Rxb6 {[%clk 0:00:37.5]} 42... Rf4+ {[%clk
0:00:47.8]} 43. Kg3 {[%clk 0:00:36.3]} 43... Rf5 {[%clk 0:00:46.8]} 44. Rb7+
{[%clk 0:00:36.3]} 44... Ke8 {[%clk 0:00:46.7]} 45. Rb8+ {[%clk 0:00:36.9]}
45... Ke7 {[%clk 0:00:46.3]} 46. Rh8 {[%clk 0:00:37.4]} 46... h5 {[%clk
0:00:45]} 47. Ra8 {[%clk 0:00:23.3]} 47... Rxe5 {[%clk 0:00:44.4]} 48. Kf4
{[%clk 0:00:23.6]} 48... Rf5+ {[%clk 0:00:44.3]} 49. Ke3 {[%clk 0:00:23.1]}
49... e5 {[%clk 0:00:43]} 50. Ra5 {[%clk 0:00:22]} 50... Ke6 {[%clk 0:00:41.8]}
51. Ra6+ {[%clk 0:00:22.2]} 51... Ke7 {[%clk 0:00:41.7]} 52. Ra5 {[%clk
0:00:22.2]} 52... e4 {[%clk 0:00:36.5]} 53. Ra7+ {[%clk 0:00:20.2]} 53... Kf6
{[%clk 0:00:36.2]} 54. Ra6+ {[%clk 0:00:20.6]} 54... Kg5 {[%clk 0:00:35.8]} 55.
Kd4 {[%clk 0:00:20.5]} 55... h4 {[%clk 0:00:34.5]} 56. Ra3 {[%clk 0:00:19.9]}
56... Kf4 {[%clk 0:00:33.7]} 57. Rh3 {[%clk 0:00:19.6]} 57... Kg4 {[%clk
0:00:33.1]} 58. Ra3 {[%clk 0:00:19.2]} 58... Rf2 {[%clk 0:00:31.9]} 59. Kxd5
{[%clk 0:00:19.6]} 59... f5 {[%clk 0:00:31.2]} 60. Ke5 {[%clk 0:00:19]} 60...
Rxg2 {[%clk 0:00:30.2]} 61. Ra8 {[%clk 0:00:19.3]} 61... h3 {[%clk 0:00:27.3]}
62. Rg8+ {[%clk 0:00:19.3]} 62... Kf3 {[%clk 0:00:27.1]} 63. Rh8 {[%clk
0:00:20.2]} 63... h2 {[%clk 0:00:25.6]} 64. Kxf5 {[%clk 0:00:20.6]} 64... e3
{[%clk 0:00:25]} 65. Rh3+ {[%clk 0:00:20.6]} 65... Kf2 {[%clk 0:00:25]} 66. Ke4
{[%clk 0:00:21]} 66... e2 {[%clk 0:00:24.7]} 67. Rf3+ {[%clk 0:00:21.3]} 67...
Kg1 {[%clk 0:00:22.5]} 68. Re3 {[%clk 0:00:18.1]} 68... h1=Q {[%clk 0:00:21.8]}
69. Kd3 {[%clk 0:00:18.6]} 69... Qh7+ {[%clk 0:00:20.8]} 70. Kd2 {[%clk
0:00:18.3]} 70... Qd7+ {[%clk 0:00:17.6]} 0-1

[Event "Betsys MČR v online bleskovém šachu 2021"]
[Site "Chess.com"]
[Date "2021.04.17"]
[Round "13"]
[White "Krejcak"]
[Black "ReitteN"]
[Result "1-0"]
[WhiteElo "1996"]
[BlackElo "1769"]
[TimeControl "180+1"]
[EndTime "11:12:19 PDT"]
[Termination "Uživatel Krejcak zvítězil na čas"]

1. e4 {[%clk 0:03:00.9]} 1... c6 {[%clk 0:02:54.1]} 2. d4 {[%clk 0:03:00.1]}
2... d5 {[%clk 0:02:54.3]} 3. Nc3 {[%clk 0:03:00.1]} 3... dxe4 {[%clk
0:02:54.5]} 4. Nxe4 {[%clk 0:03:00.6]} 4... Bf5 {[%clk 0:02:54.6]} 5. Ng3 {[%clk
0:03:00.4]} 5... Bg6 {[%clk 0:02:54.6]} 6. Nf3 {[%clk 0:03:01]} 6... Nd7 {[%clk
0:02:53.9]} 7. h4 {[%clk 0:03:00.8]} 7... h6 {[%clk 0:02:53.9]} 8. Bf4 {[%clk
0:02:57.7]} 8... Ngf6 {[%clk 0:02:48.8]} 9. Bd3 {[%clk 0:02:57.4]} 9... Bxd3
{[%clk 0:02:48.7]} 10. Qxd3 {[%clk 0:02:57.5]} 10... e6 {[%clk 0:02:49.3]} 11.
O-O-O {[%clk 0:02:57]} 11... Be7 {[%clk 0:02:45.6]} 12. Ne5 {[%clk 0:02:55.7]}
12... Rc8 {[%clk 0:02:42]} 13. Kb1 {[%clk 0:02:55]} 13... Nd5 {[%clk 0:02:40.3]}
14. Bc1 {[%clk 0:02:53.5]} 14... Nxe5 {[%clk 0:02:26]} 15. dxe5 {[%clk
0:02:52.6]} 15... Qb6 {[%clk 0:02:26.4]} 16. Ne4 {[%clk 0:02:44.9]} 16... O-O
{[%clk 0:02:20]} 17. g4 {[%clk 0:02:32.5]} 17... Nb4 {[%clk 0:02:10.1]} 18. Qb3
{[%clk 0:02:28.7]} 18... Rfd8 {[%clk 0:02:07.7]} 19. g5 {[%clk 0:02:27.3]} 19...
h5 {[%clk 0:01:46.9]} 20. Be3 {[%clk 0:02:13.7]} 20... Qb5 {[%clk 0:01:37.7]}
21. c4 {[%clk 0:02:06.4]} 21... Qxe5 {[%clk 0:01:33.9]} 22. Ng3 {[%clk
0:01:37.9]} 22... g6 {[%clk 0:01:21]} 23. a3 {[%clk 0:01:32.6]} 23... Na6 {[%clk
0:01:13.2]} 24. Bxa7 {[%clk 0:01:30.7]} 24... Nc5 {[%clk 0:01:04.1]} 25. Qf3
{[%clk 0:00:54.2]} 25... Na4 {[%clk 0:00:53.5]} 26. Qb3 {[%clk 0:00:48]} 26...
Nc5 {[%clk 0:00:51]} 27. Qf3 {[%clk 0:00:41.2]} 27... Ra8 {[%clk 0:00:46]} 28.
Bb6 {[%clk 0:00:39.8]} 28... Rd4 {[%clk 0:00:30.4]} 29. Rxd4 {[%clk 0:00:36.1]}
29... Qxd4 {[%clk 0:00:31.3]} 30. Rc1 {[%clk 0:00:26.3]} 30... Qd3+ {[%clk
0:00:25.2]} 31. Qxd3 {[%clk 0:00:25.5]} 31... Nxd3 {[%clk 0:00:26.1]} 32. Rd1
{[%clk 0:00:23.9]} 32... Nxf2 {[%clk 0:00:25.8]} 33. Rd7 {[%clk 0:00:22.9]}
33... Bf8 {[%clk 0:00:17.6]} 34. Rxb7 {[%clk 0:00:22.9]} 34... Ng4 {[%clk
0:00:16.9]} 35. Ne4 {[%clk 0:00:22.4]} 35... Ne5 {[%clk 0:00:09.7]} 36. Nf6+
{[%clk 0:00:21.1]} 36... Kg7 {[%clk 0:00:05.7]} 37. Bd4 {[%clk 0:00:20.8]} 37...
Bd6 {[%clk 0:00:03.8]} 38. Rb6 {[%clk 0:00:18.4]} 38... Rd8 {[%clk 0:00:02.8]}
39. c5 {[%clk 0:00:17.6]} 39... Bc7 {[%clk 0:00:02.6]} 40. Bxe5 {[%clk
0:00:16.5]} 40... Bxe5 {[%clk 0:00:02.2]} 41. Rxc6 {[%clk 0:00:17]} 41... Bxf6
{[%clk 0:00:02.3]} 42. gxf6+ {[%clk 0:00:17.3]} 42... Kxf6 {[%clk 0:00:03.2]}
43. Rc7 {[%clk 0:00:17.2]} 43... e5 {[%clk 0:00:02.9]} 44. c6 {[%clk 0:00:17.7]}
44... Ke6 {[%clk 0:00:02.8]} 45. Ra7 {[%clk 0:00:17.4]} 45... Rc8 {[%clk
0:00:02.9]} 46. c7 {[%clk 0:00:17.5]} 46... Kd7 {[%clk 0:00:02.9]} 47. Ra5
{[%clk 0:00:17.2]} 47... f6 {[%clk 0:00:01.5]} 48. Ra6 {[%clk 0:00:17]} 48...
Ke7 {[%clk 0:00:02]} 49. Rc6 {[%clk 0:00:16.7]} 49... f5 {[%clk 0:00:01.6]} 50.
b4 {[%clk 0:00:16.4]} 50... Kf7 {[%clk 0:00:01.4]} 51. b5 {[%clk 0:00:16.7]}
51... f4 {[%clk 0:00:01.7]} 52. b6 {[%clk 0:00:17.3]} 52... f3 {[%clk
0:00:02.3]} 53. b7 {[%clk 0:00:17.7]} 53... f2 {[%clk 0:00:02.8]} 54. bxc8=Q
{[%clk 0:00:16.6]} 54... f1=Q+ {[%clk 0:00:03.2]} 55. Rc1 {[%clk 0:00:15.9]}
55... Qd3+ {[%clk 0:00:03.1]} 56. Rc2 {[%clk 0:00:16.1]} 56... Qb3+ {[%clk
0:00:03.2]} 57. Rb2 {[%clk 0:00:16.2]} 57... Qd3+ {[%clk 0:00:03.2]} 58. Ka2
{[%clk 0:00:16.3]} 58... Qc4+ {[%clk 0:00:03.5]} 59. Ka1 {[%clk 0:00:16.4]}
59... Qf1+ {[%clk 0:00:03.5]} 60. Rb1 {[%clk 0:00:16.3]} 60... Qc4 {[%clk
0:00:02.4]} 61. Qd7+ {[%clk 0:00:15.4]} 61... Kf6 {[%clk 0:00:02.2]} 62. c8=Q
{[%clk 0:00:15]} 1-0